[Event "3rd Sharjah Masters 2019"]
[Site "Sharjah"]
[Date "2019.03.27"]
[Round "6.46"]
[White "Nitin, S.."]
[Black "Bommini, Mounika Akshaya"]
[Result "1-0"]
[ECO "A06"]
[WhiteElo "2408"]
[BlackElo "2076"]
[Annotator "NA"]
[PlyCount "93"]
[EventDate "2019.03.22"]
[EventType "swiss"]
[EventCountry "UAE"]
[SourceTitle "playchess.com"]
[Source "ChessBase"]
[SourceQuality "1"]
[TimeControl "5400+30"]

1. Nf3 {[%emt 0:00:05]} d5 {[%emt 0:00:00]} 2. g3 {[%emt 0:00:07]} Bg4 {[%emt 0:00:00]} 3. Bg2 {[%emt 0:00:10]} Nd7 {[%emt 0:00:02]} 4. O-O {[%emt 0:00:17]} c6 {[%emt 0:00:22]} 5. h3 {[%emt 0:00:41] LiveBook: 130 Games} Bh5 $11 {[%emt 0:00:38]} 6. d3 {[%emt 0:00:11]} Ngf6 {[%emt 0:00:19]} 7. Qe1 {[%emt 0:00:09]} e5 {[%emt 0:00:29]} 8. e4 {[%emt 0:00:08]} dxe4 {[%emt 0:00:16]} 9. dxe4 {[%emt 0:00:07]} Bc5 {[%emt 0:00:17]} 10. Nbd2 {[%emt 0:00:25]} O-O {[%emt 0:00:14]} 11. a4 {[%emt 0:00:15]} Re8 {[%emt 0:03:32]} 12. Nh4 {[%emt 0:01:32]} Nf8 {[%emt 0:05:30]} 13. Nb3 {[%emt 0:05:20]} Be7 {[%emt 0:10:31]} 14. Nf5 {[%emt 0:01:52]} Ne6 {[%emt 0:00:47]} 15. Nxe7+ {[%emt 0:25:08]} Qxe7 {[%emt 0:00:21]} 16. Qc3 {[%emt 0:00:09]} Qc7 {[%emt 0:07:25]} 17. f4 {[%emt 0:03:46]} exf4 {[%emt 0:09:55]} 18. gxf4 {[%emt 0:00:38]} Rad8 {[%emt 0:05:52]} 19. Bd2 {[%emt 0:21:05]} c5 {[%emt 0:08:45]} 20. Be3 {[%emt 0:00:47]} b6 {[%emt 0:10:02]} 21. Rae1 {[%emt 0:03:01]} Qd7 {[%emt 0:04:49]} 22. Qc4 {[%emt 0:00:58]} a6 {[%emt 0:09:29]} 23. f5 {[%emt 0:01:39]} Nf8 {[%emt 0:14:08]} 24. Bf4 {[%emt 0:01:42]} b5 {[%emt 0:01:59]} 25. axb5 {[%emt 0:00:19]} axb5 {[%emt 0:00:28]} 26. Qxc5 {[%emt 0:00:11]} Rc8 {[%emt 0:01:07]} 27. Qf2 {[%emt 0:00:14]} Rc4 {[%emt 0:00:32]} 28. Bg3 {[%emt 0:07:13]} Qc8 {[%emt 0:01:42]} 29. Nd4 {[%emt 0:00:15]} Qc5 {[%emt 0:00:23]} 30. c3 {[%emt 0:00:05]} b4 {[%emt 0:00:29]} 31. e5 {[%emt 0:00:55]} Nd5 {[%emt 0:01:30]} 32. Nb3 {[%emt 0:01:04]} Qxf2+ {[%emt 0:00:39]} 33. Rxf2 {[%emt 0:00:14]} Nb6 {[%emt 0:01:20]} 34. Nd2 {[%emt 0:00:21]} Rc5 {[%emt 0:00:58]} 35. cxb4 {[%emt 0:00:15]} Rc2 {[%emt 0:00:28]} 36. Ne4 {[%emt 0:00:25]} Rxf2 {[%emt 0:00:21]} 37. Kxf2 {[%emt 0:00:55]} Rc8 {[%emt 0:00:36]} 38. Nc5 {[%emt 0:01:05]} Nfd7 {[%emt 0:00:32]} 39. Rc1 {[%emt 0:06:25]} Na4 {[%emt 0:00:21]} 40. Ke3 {[%emt 0:04:20]} Naxc5 {[%emt 0:00:47]} 41. bxc5 {[%emt 0:00:13]} Rxc5 {[%emt 0:00:15]} 42. Rxc5 {[%emt 0:00:12]} Nxc5 {[%emt 0:00:04]} 43. b4 {[%emt 0:00:31]} Nd7 {[%emt 0:00:51]} 44. Bc6 {[%emt 0:00:16]} Nb6 {[%emt 0:00:19]} 45. Kd4 {[%emt 0:00:09]} Bd1 {[%emt 0:00:30]} 46. Kc5 {[%emt 0:00:42]} Na4+ {[%emt 0:00:10]} 47. Kd6 {[%emt 0:00:34]} 1-0

[Event "3rd Sharjah Masters 2019"]
[Site "Sharjah"]
[Date "2019.03.27"]
[Round "6.47"]
[White "Mrudul, Dehankar"]
[Black "Assaubayeva, Bibisara"]
[Result "0-1"]
[ECO "A45"]
[WhiteElo "2078"]
[BlackElo "2376"]
[Annotator "NA"]
[PlyCount "74"]
[EventDate "2019.03.22"]
[EventType "swiss"]
[EventCountry "UAE"]
[SourceTitle "playchess.com"]
[Source "ChessBase"]
[SourceQuality "1"]
[TimeControl "5400+30"]

1. d4 {[%emt 0:00:00]} Nf6 {[%emt 0:00:00]} 2. Bf4 {[%emt 0:00:00]} c5 {[%emt 0:00:38]} 3. d5 {[%emt 0:00:40]} b5 {[%emt 0:01:05]} 4. a4 {[%emt 0:03:50]} Bb7 {[%emt 0:01:49]} 5. axb5 {[%emt 0:08:08]} Nxd5 {[%emt 0:01:56]} 6. Bg3 {[%emt 0:04:05]} d6 {[%emt 0:04:22]} 7. e3 {[%emt 0:06:36]} g6 {[%emt 0:05:15]} 8. Nf3 {[%emt 0:01:48]} Bg7 {[%emt 0:04:21]} 9. c3 {[%emt 0:02:57]} Nd7 {[%emt 0:04:39]} 10. Be2 {[%emt 0:03:43]} O-O {[%emt 0:05:23]} 11. O-O {[%emt 0:02:50]} N7f6 {[%emt 0:03:55]} 12. Nbd2 {[%emt 0:04:25]} Qd7 {[%emt 0:04:51]} 13. Qc2 {[%emt 0:06:25]} Nc7 {[%emt 0:10:32]} 14. Ra5 {[%emt 0:02:40]} a6 {[%emt 0:03:16]} 15. bxa6 {[%emt 0:10:40]} Nxa6 {[%emt 0:02:50]} 16. Rfa1 {[%emt 0:02:49]} Nc7 {[%emt 0:00:24]} 17. Nc4 {[%emt 0:06:20]} Rxa5 {[%emt 0:05:49]} 18. Rxa5 {[%emt 0:01:17]} Be4 {[%emt 0:02:48]} 19. Qb3 {[%emt 0:03:31]} Ne6 {[%emt 0:07:17]} 20. Nfd2 {[%emt 0:03:45]} Bc6 {[%emt 0:02:54]} 21. Qa3 {[%emt 0:07:41]} Rb8 {[%emt 0:09:25]} 22. Ra7 {[%emt 0:01:03]} Qd8 {[%emt 0:01:28]} 23. Na5 {[%emt 0:09:16]} Ba8 {[%emt 0:02:23]} 24. Bf3 {[%emt 0:01:39]} Bxf3 {[%emt 0:00:40]} 25. Nxf3 {[%emt 0:00:15]} Qe8 {[%emt 0:00:54]} 26. Nc4 {[%emt 0:03:12]} Ne4 {[%emt 0:01:16]} 27. Qa6 {[%emt 0:02:09]} Bxc3 {[%emt 0:02:36]} 28. Rb7 {[%emt 0:01:38]} Rxb7 {[%emt 0:01:27]} 29. Qxb7 {[%emt 0:00:01]} Qa4 {[%emt 0:01:48]} 30. h4 {[%emt 0:00:39]} Qxc4 {[%emt 0:00:46]} 31. bxc3 {[%emt 0:00:08]} Nxg3 {[%emt 0:01:03]} 32. fxg3 {[%emt 0:00:02]} Qxc3 {[%emt 0:00:24]} 33. Qxe7 {[%emt 0:00:31]} Qxe3+ {[%emt 0:00:16]} 34. Kh2 {[%emt 0:00:24]} Qd3 {[%emt 0:01:37]} 35. Ng5 {[%emt 0:01:27]} Nxg5 {[%emt 0:00:43]} 36. hxg5 {[%emt 0:00:52]} Qd4 {[%emt 0:00:12]} 37. Qd8+ {[%emt 0:00:21]} Kg7 {[%emt 0:00:08]} 0-1

[Event "3rd Sharjah Masters 2019"]
[Site "Sharjah"]
[Date "2019.03.28"]
[Round "7.6"]
[White "Sjugirov, Sanan"]
[Black "Deepan, Chakkravarthy J."]
[Result "1/2-1/2"]
[ECO "C92"]
[WhiteElo "2667"]
[BlackElo "2534"]
[Annotator "RC"]
[PlyCount "81"]
[EventDate "2019.03.22"]
[EventType "swiss"]
[EventCountry "UAE"]
[SourceTitle "playchess.com"]
[Source "ChessBase"]
[SourceQuality "1"]
[TimeControl "5400+30"]

1. e4 {[%emt 0:00:00]} e5 {[%emt 0:00:00]} 2. Nf3 {[%emt 0:00:00]} Nc6 {[%emt 0:00:00]} 3. Bb5 {[%emt 0:00:00]} a6 {[%emt 0:00:00]} 4. Ba4 {[%emt 0:00:03]} Nf6 {[%emt 0:00:10]} 5. O-O {[%emt 0:00:16]} Be7 {[%emt 0:00:18]} 6. Re1 {[%emt 0:00:17]} b5 {[%emt 0:00:07]} 7. Bb3 {[%emt 0:00:06]} d6 {[%emt 0:00:10]} 8. c3 {[%emt 0:00:11]} O-O {[%emt 0:00:08]} 9. h3 {[%emt 0:00:07]} Re8 {[%emt 0:00:33]} 10. d4 {[%emt 0:07:27]} Bb7 {[%emt 0:00:18]} 11. Nbd2 {[%emt 0:00:45]} Bf8 {[%emt 0:01:31]} 12. Ng5 Re7 13. d5 Nb8 14. Nf1 h6 15. Nf3 Re8 16. Ng3 Nbd7 17. Nh2 Nc5 18. Bc2 c6 19. b4 Ncd7 20. dxc6 Bxc6 21. Ng4 Rc8 22. Bb3 Nxg4 23. hxg4 Nb6 24. g5 hxg5 25. Qh5 Nc4 26. Bxg5 Be7 27. Bxe7 Qxe7 28. Nf5 Qf6 29. Bxc4 bxc4 30. Rad1 g6 31. Qg4 d5 32. exd5 Ba4 33. Ne3 Bxd1 34. Rxd1 Red8 35. Nxc4 e4 36. Rd4 Qxd4 37. cxd4 Rxc4 38. Qxe4 Rxb4 39. d6 Rb6 40. d7 Re6 41. Qb7 1/2-1/2

[Event "3rd Sharjah Masters 2019"]
[Site "Sharjah"]
[Date "2019.03.28"]
[Round "7.19"]
[White "Kuybokarov, Temur"]
[Black "Koniahli, Malek."]
[Result "1-0"]
[ECO "E94"]
[WhiteElo "2519"]
[BlackElo "2294"]
[Annotator "RC"]
[PlyCount "49"]
[EventDate "2019.03.22"]
[EventType "swiss"]
[EventCountry "UAE"]
[SourceTitle "playchess.com"]
[Source "ChessBase"]
[SourceQuality "1"]
[TimeControl "5400+30"]

1. d4 Nf6 2. c4 g6 3. Nc3 Bg7 4. e4 d6 5. Nf3 O-O 6. Be2 e5 7. O-O Na6 8. Be3 Ng4 9. Bg5 Qe8 10. Rc1 h6 11. Bh4 c6 12. dxe5 dxe5 13. Qd6 Qe6 14. c5 Nf6 15. Bxa6 bxa6 16. Rfd1 Nh5 17. Qc7 Nf4 18. Bg3 Re8 19. b3 Bf8 20. Bxf4 exf4 21. Qxf4 Qg4 22. Qc7 Be6 23. h3 Qh5 24. Ne2 Rac8 25. Qg3 1-0

[Event "3rd Sharjah Masters 2019"]
[Site "Sharjah"]
[Date "2019.03.28"]
[Round "7.44"]
[White "Bouzidi, Ahmed"]
[Black "Sidhant, Mohapatra"]
[Result "0-1"]
[ECO "B22"]
[WhiteElo "2199"]
[BlackElo "2348"]
[Annotator "NA"]
[PlyCount "70"]
[EventDate "2019.03.22"]
[EventType "swiss"]
[EventCountry "UAE"]
[SourceTitle "playchess.com"]
[Source "ChessBase"]
[SourceQuality "1"]
[TimeControl "5400+30"]

1. e4 {[%emt 0:00:52]} c5 {[%emt 0:13:15]} 2. c3 {[%emt 0:00:11]} d6 {[%emt 0:00:07]} 3. d4 {[%emt 0:00:15]} Nf6 {[%emt 0:00:05]} 4. Bd3 {[%emt 0:02:17]} Nc6 {[%emt 0:00:07]} 5. Ne2 {[%emt 0:01:05]} g6 {[%emt 0:01:27]} 6. f4 {[%emt 0:05:42]} cxd4 {[%emt 0:01:17]} 7. cxd4 {[%emt 0:00:09]} Bg7 {[%emt 0:00:04]} 8. Nbc3 {[%emt 0:02:45]} O-O {[%emt 0:00:06]} 9. h3 {[%emt 0:01:54]} e5 {[%emt 0:08:18]} 10. fxe5 {[%emt 0:13:44]} dxe5 {[%emt 0:00:26]} 11. d5 {[%emt 0:00:43]} Nd4 {[%emt 0:00:19]} 12. Be3 {[%emt 0:00:41]} Ne8 {[%emt 0:00:27]} 13. O-O {[%emt 0:16:57]} Nd6 {[%emt 0:01:34]} 14. Bb1 {[%emt 0:10:37]} Nc4 {[%emt 0:02:47]} 15. Bc1 {[%emt 0:01:51]} Qb6 {[%emt 0:01:49]} 16. Nxd4 {[%emt 0:00:26]} exd4 {[%emt 0:00:45]} 17. Na4 {[%emt 0:00:13]} Qa5 {[%emt 0:00:34]} 18. Bd3 {[%emt 0:05:13]} b5 {[%emt 0:01:48]} 19. Nc5 {[%emt 0:01:44]} Qb6 {[%emt 0:00:13]} 20. b4 {[%emt 0:07:25]} a5 {[%emt 0:00:52]} 21. Qb3 Ne3 {[%emt 0:04:24]} 22. Ba3 {[%emt 0:00:41]} a4 {[%emt 0:04:23]} 23. Qb2 {[%emt 0:02:50]} Nxf1 {[%emt 0:00:49]} 24. Rxf1 {[%emt 0:00:13]} f5 {[%emt 0:05:04]} 25. Qc2 {[%emt 0:04:40]} fxe4 {[%emt 0:01:06]} 26. Rxf8+ {[%emt 0:00:06]} Bxf8 {[%emt 0:00:04]} 27. Bxe4 {[%emt 0:00:24]} Qd6 {[%emt 0:00:38]} 28. Qd3 {[%emt 0:04:07]} Qe5 {[%emt 0:01:27]} 29. Bb2 {[%emt 0:02:26]} Bg7 {[%emt 0:00:56]} 30. Qxb5 {[%emt 0:06:25]} Bf5 {[%emt 0:00:38]} 31. Qd3 {[%emt 0:08:11]} Bxe4 32. Qxe4 {[%emt 0:00:35]} Qxe4 {[%emt 0:01:20]} 33. Nxe4 {[%emt 0:00:05]} a3 {[%emt 0:00:04]} 34. Bc1 {[%emt 0:01:01]} Re8 {[%emt 0:00:02]} 35. Nd2 {[%emt 0:00:30]} Re1+ {[%emt 0:00:05]} 0-1

[Event "3rd Sharjah Masters 2019"]
[Site "Sharjah"]
[Date "2019.03.28"]
[Round "7.45"]
[White "Gokhale, Chandrashekhar"]
[Black "Shailesh, Dravid"]
[Result "1-0"]
[ECO "A48"]
[WhiteElo "2185"]
[BlackElo "2316"]
[Annotator "NA"]
[PlyCount "71"]
[EventDate "2019.03.22"]
[EventType "swiss"]
[EventCountry "UAE"]
[SourceTitle "playchess.com"]
[Source "ChessBase"]
[SourceQuality "1"]
[TimeControl "5400+30"]

1. Nf3 {[%emt 0:00:00]} Nf6 {[%emt 0:00:00]} 2. d4 {[%emt 0:00:30]} g6 {[%emt 0:00:00]} 3. Bf4 {[%emt 0:00:44]} Bg7 {[%emt 0:00:00]} 4. e3 {[%emt 0:00:13]} d6 {[%emt 0:00:04]} 5. h3 {[%emt 0:00:16]} O-O {[%emt 0:00:15]} 6. Be2 {[%emt 0:00:06]} c5 {[%emt 0:02:38]} 7. c3 {[%emt 0:00:27]} Nc6 {[%emt 0:00:09]} 8. O-O {[%emt 0:00:59]} cxd4 {[%emt 0:00:07]} 9. exd4 {[%emt 0:03:49]} Be6 {[%emt 0:00:24]} 10. Bd3 {[%emt 0:06:05]} Qb6 {[%emt 0:01:17]} 11. Qe2 {[%emt 0:00:32]} Bd5 {[%emt 0:02:22]} 12. Na3 {[%emt 0:10:24]} e5 {[%emt 0:14:50]} 13. dxe5 {[%emt 0:03:23]} dxe5 {[%emt 0:00:12]} 14. Be3 {[%emt 0:00:34]} Bxf3 {[%emt 0:01:20]} 15. gxf3 {[%emt 0:00:35]} Qc7 {[%emt 0:01:07]} 16. Rfd1 {[%emt 0:03:01]} Rfe8 {[%emt 0:03:02]} 17. Nb5 {[%emt 0:06:46]} Qe7 {[%emt 0:04:28]} 18. Bc4 {[%emt 0:02:32]} Nh5 {[%emt 0:06:52]} 19. Nd6 {[%emt 0:04:34]} Rf8 {[%emt 0:00:11]} 20. Ne4 {[%emt 0:08:40]} Qh4 {[%emt 0:01:45]} 21. Kg2 {[%emt 0:00:20]} Kh8 {[%emt 0:10:28]} 22. Bg5 {[%emt 0:12:21]} Nf4+ {[%emt 0:00:39]} 23. Bxf4 {[%emt 0:00:07]} exf4 {[%emt 0:01:39]} 24. Nd6 {[%emt 0:01:46]} h5 {[%emt 0:14:43]} 25. Rd5 {[%emt 0:05:16]} Ne7 {[%emt 0:14:16]} 26. Rd2 {[%emt 0:00:16]} Nf5 {[%emt 0:01:50]} 27. Nxf5 {[%emt 0:03:35]} gxf5 {[%emt 0:00:27]} 28. Kh2 {[%emt 0:10:01]} Rae8 {[%emt 0:00:42]} 29. Qd3 {[%emt 0:00:38]} Bf6 {[%emt 0:01:46]} 30. Rg1 {[%emt 0:00:47]} Re5 {[%emt 0:02:51]} 31. Re2 {[%emt 0:01:41]} Rc5 {[%emt 0:00:40]} 32. Bd5 {[%emt 0:03:29]} b5 {[%emt 0:01:05]} 33. b4 {[%emt 0:01:20]} Rxc3 {[%emt 0:01:08]} 34. Qxf5 {[%emt 0:00:06]} Rg8 {[%emt 0:00:29]} 35. Rxg8+ {[%emt 0:00:08]} Kxg8 {[%emt 0:00:04]} 36. Qg6+ {[%emt 0:00:07]} 1-0

[Event "3rd Sharjah Masters 2019"]
[Site "Sharjah"]
[Date "2019.03.28"]
[Round "7.46"]
[White "Ajay Karthikeyan"]
[Black "Ahmed, Fareed"]
[Result "0-1"]
[ECO "A45"]
[WhiteElo "2298"]
[BlackElo "1950"]
[Annotator "NA"]
[PlyCount "118"]
[EventDate "2019.03.22"]
[EventType "swiss"]
[EventCountry "UAE"]
[SourceTitle "playchess.com"]
[Source "ChessBase"]
[SourceQuality "1"]
[TimeControl "5400+30"]

1. d4 {[%emt 0:00:00]} Nf6 {[%emt 0:03:00]} 2. Bf4 {[%emt 0:00:00]} d5 {[%emt 0:00:25]} 3. e3 {[%emt 0:00:00]} e6 {[%emt 0:00:21]} 4. Nf3 {[%emt 0:00:00]} c5 {[%emt 0:00:27]} 5. c3 {[%emt 0:00:00]} Be7 {[%emt 0:00:50]} 6. Nbd2 {[%emt 0:01:24]} Nbd7 {[%emt 0:00:07]} 7. Ne5 {[%emt 0:01:57]} Nxe5 {[%emt 0:02:02]} 8. dxe5 {[%emt 0:00:33]} Nd7 {[%emt 0:00:24]} 9. Bd3 {[%emt 0:04:51]} g5 {[%emt 0:03:51]} 10. Bg3 {[%emt 0:00:22]} h5 {[%emt 0:00:08]} 11. h4 {[%emt 0:06:57]} gxh4 {[%emt 0:01:02]} 12. Bf4 {[%emt 0:06:35]} Qc7 {[%emt 0:00:31]} 13. Nf3 {[%emt 0:00:20]} b6 {[%emt 0:06:10]} 14. Nxh4 {[%emt 0:14:06]} Bb7 {[%emt 0:04:31]} 15. Nf3 {[%emt 0:16:39]} O-O-O {[%emt 0:02:10]} 16. Qe2 {[%emt 0:01:38]} c4 {[%emt 0:09:47]} 17. Bc2 {[%emt 0:00:33]} b5 {[%emt 0:00:23]} 18. Ng5 {[%emt 0:06:36]} Bxg5 {[%emt 0:05:24]} 19. Bxg5 {[%emt 0:00:01]} Rdg8 {[%emt 0:00:53]} 20. f4 {[%emt 0:00:14]} Rxg5 {[%emt 0:00:07]} 21. fxg5 {[%emt 0:00:04]} Qxe5 {[%emt 0:03:07]} 22. O-O-O {[%emt 0:03:40]} Qxg5 {[%emt 0:00:13]} 23. Kb1 {[%emt 0:00:29]} f5 {[%emt 0:00:44]} 24. Qd2 {[%emt 0:03:07]} Rg8 {[%emt 0:03:22]} 25. Qd4 {[%emt 0:02:15]} Kb8 {[%emt 0:00:35]} 26. Rdg1 {[%emt 0:07:09]} e5 {[%emt 0:05:08]} 27. Qh4 {[%emt 0:00:11]} Nf6 {[%emt 0:00:43]} 28. Qxg5 {[%emt 0:07:09]} Rxg5 {[%emt 0:00:06]} 29. Kc1 {[%emt 0:02:02]} Ng4 {[%emt 0:05:33]} 30. Kd2 {[%emt 0:00:23]} f4 {[%emt 0:01:55]} 31. exf4 {[%emt 0:00:29]} exf4 {[%emt 0:00:05]} 32. Bd1 {[%emt 0:04:14]} Kc7 {[%emt 0:10:29]} 33. Bxg4 {[%emt 0:02:12]} hxg4 {[%emt 0:00:37]} 34. Rh7+ Kb6 {[%emt 0:01:23]} 35. Rf7 {[%emt 0:00:42]} Bc8 {[%emt 0:02:05]} 36. Rxf4 {[%emt 0:00:39]} Bf5 {[%emt 0:00:04]} 37. Ke3 {[%emt 0:01:01]} Kc5 {[%emt 0:00:26]} 38. b4+ {[%emt 0:02:56]} cxb3 {[%emt 0:02:32]} 39. axb3 {[%emt 0:00:01]} Be4 {[%emt 0:00:09]} 40. Rf6 {[%emt 0:01:30]} a5 {[%emt 0:01:26]} 41. Kf4 {[%emt 0:02:17]} Rg7 {[%emt 0:00:48]} 42. Ra6 {[%emt 0:00:05]} Bc2 {[%emt 0:00:33]} 43. Rxa5 Bxb3 {[%emt 0:00:06]} 44. Ra8 {[%emt 0:02:03]} Kc4 {[%emt 0:00:38]} 45. Rc8+ {[%emt 0:01:29]} Kd3 {[%emt 0:00:07]} 46. Re1 {[%emt 0:01:36]} Kd2 {[%emt 0:01:15]} 47. Ra1 {[%emt 0:02:26]} Bc4 {[%emt 0:01:28]} 48. Ra3 {[%emt 0:00:26]} Kc2 {[%emt 0:00:32]} 49. g3 {[%emt 0:00:36]} Kb2 {[%emt 0:00:08]} 50. Ra5 {[%emt 0:00:01]} Rb7 {[%emt 0:04:55]} 51. Kxg4 {[%emt 0:00:40]} Kxc3 {[%emt 0:00:04]} 52. Kf4 {[%emt 0:00:44]} d4 {[%emt 0:02:03]} 53. Ra1 {[%emt 0:00:36]} Kb2 {[%emt 0:06:08]} 54. Rg1 {[%emt 0:00:20]} d3 {[%emt 0:01:54]} 55. g4 {[%emt 0:00:38]} Kc2 {[%emt 0:01:43]} 56. Rg2+ {[%emt 0:00:32]} Kc3 {[%emt 0:01:12]} 57. Rd8 {[%emt 0:00:31]} b4 {[%emt 0:00:18]} 58. g5 {[%emt 0:00:18]} b3 {[%emt 0:00:14]} 59. g6 {[%emt 0:00:36]} b2 {[%emt 0:00:28]} 0-1

[Event "3rd Sharjah Masters 2019"]
[Site "Sharjah"]
[Date "2019.03.28"]
[Round "7.47"]
[White "Amdouni, Zoubaier"]
[Black "Jinan, Jomon"]
[Result "1-0"]
[ECO "C24"]
[WhiteElo "2275"]
[BlackElo "1848"]
[Annotator "NA"]
[PlyCount "63"]
[EventDate "2019.03.22"]
[EventType "swiss"]
[EventCountry "UAE"]
[SourceTitle "playchess.com"]
[Source "ChessBase"]
[SourceQuality "1"]
[TimeControl "5400+30"]

1. e4 {[%emt 0:00:00]} e5 {[%emt 0:00:00]} 2. Bc4 {[%emt 0:00:00]} Nf6 {[%emt 0:00:00]} 3. d3 {[%emt 0:00:00]} Bc5 {[%emt 0:00:00]} 4. Nc3 {[%emt 0:00:00]} c6 {[%emt 0:00:06]} 5. Nf3 {[%emt 0:00:24]} d6 {[%emt 0:00:08]} 6. O-O $11 {[%emt 0:02:05]} b5 {[%emt 0:00:25]} 7. Bb3 {[%emt 0:00:04]} a5 {[%emt 0:00:05]} 8. a4 {[%emt 0:00:34]} b4 {[%emt 0:00:07]} 9. Ne2 {[%emt 0:00:06]} O-O {[%emt 0:00:22]} 10. Ng3 {[%emt 0:00:47]} h6 {[%emt 0:16:24]} 11. c3 {[%emt 0:02:11]} bxc3 {[%emt 0:09:22]} 12. bxc3 {[%emt 0:00:42]} Re8 {[%emt 0:21:44]} 13. Re1 {[%emt 0:23:59]} Bb6 {[%emt 0:13:53]} 14. h3 {[%emt 0:01:21]} Nbd7 {[%emt 0:08:36]} 15. d4 {[%emt 0:05:59]} Qc7 {[%emt 0:02:04]} 16. Ba3 {[%emt 0:15:51]} d5 {[%emt 0:05:15]} 17. Rc1 {[%emt 0:07:20]} exd4 {[%emt 0:03:54]} 18. cxd4 {[%emt 0:00:49]} dxe4 {[%emt 0:01:24]} 19. Nf5 {[%emt 0:04:23]} exf3 {[%emt 0:09:23]} 20. Rxe8+ {[%emt 0:09:39]} Nxe8 {[%emt 0:00:01]} 21. Bxf7+ {[%emt 0:00:04]} Kxf7 {[%emt 0:00:50]} 22. Qb3+ {[%emt 0:00:04]} Kf6 {[%emt 0:01:43]} 23. Qxf3 {[%emt 0:00:13]} Nc5 {[%emt 0:05:07]} 24. dxc5 {[%emt 0:05:48]} Ba7 {[%emt 0:00:34]} 25. Nd6+ {[%emt 0:01:04]} Kg6 {[%emt 0:00:31]} 26. Qe4+ {[%emt 0:00:41]} Kh5 {[%emt 0:00:29]} 27. Qxe8+ {[%emt 0:00:10]} g6 {[%emt 0:00:20]} 28. Qe2+ {[%emt 0:01:01]} Kg5 {[%emt 0:00:33]} 29. Qe5+ {[%emt 0:00:08]} Bf5 {[%emt 0:00:36]} 30. Ne4+ {[%emt 0:00:09]} Kh5 {[%emt 0:00:20]} 31. Ng3+ {[%emt 0:00:12]} Kg5 {[%emt 0:00:18]} 32. Qxc7 {[%emt 0:00:06]} 1-0

[Event "3rd Sharjah Masters 2019"]
[Site "Sharjah"]
[Date "2019.03.29"]
[Round "8.33"]
[White "Sapaev, Maksad"]
[Black "Zaibi, Amir"]
[Result "1-0"]
[ECO "B33"]
[WhiteElo "2214"]
[BlackElo "2386"]
[Annotator "NA"]
[PlyCount "89"]
[EventDate "2019.03.22"]
[EventType "swiss"]
[EventCountry "UAE"]
[SourceTitle "playchess.com"]
[Source "ChessBase"]
[SourceQuality "1"]
[TimeControl "5400+30"]

1. e4 {[%emt 0:01:32]} c5 {[%emt 0:00:00]} 2. Nf3 {[%emt 0:00:06]} Nc6 {[%emt 0:00:00]} 3. d4 {[%emt 0:00:09]} cxd4 {[%emt 0:00:00]} 4. Nxd4 {[%emt 0:00:08]} Nf6 {[%emt 0:00:28]} 5. Nc3 {[%emt 0:00:04]} e6 {[%emt 0:00:11]} 6. Ndb5 {[%emt 0:01:53]} Bb4 {[%emt 0:00:13]} 7. a3 {[%emt 0:00:47]} Bxc3+ {[%emt 0:00:06]} 8. Nxc3 {[%emt 0:00:04]} d5 {[%emt 0:00:09]} 9. exd5 {[%emt 0:00:39]} exd5 {[%emt 0:00:06]} 10. Bd3 {[%emt 0:00:55]} O-O {[%emt 0:00:15]} 11. O-O {[%emt 0:00:03]} d4 {[%emt 0:01:47]} 12. Ne2 {[%emt 0:01:56]} Bg4 {[%emt 0:00:13]} 13. f3 {[%emt 0:02:31]} Bh5 {[%emt 0:00:08]} 14. Bg5 {[%emt 0:00:28]} Bg6 {[%emt 0:04:21]} 15. f4 {[%emt 0:18:51]} Qd6 {[%emt 0:06:48]} 16. f5 {[%emt 0:17:57]} Bh5 {[%emt 0:00:06]} 17. Bf4 {[%emt 0:00:39]} Qd5 {[%emt 0:04:44]} 18. h3 {[%emt 0:02:49]} Bxe2 {[%emt 0:00:31]} 19. Qxe2 {[%emt 0:01:12]} Rfe8 {[%emt 0:00:21]} 20. Qf2 {[%emt 0:04:36]} Ne5 {[%emt 0:08:08]} 21. Bxe5 {[%emt 0:01:02]} Rxe5 {[%emt 0:00:40]} 22. a4 {[%emt 0:04:07]} Re3 {[%emt 0:04:28]} 23. Qh4 {[%emt 0:02:59]} h6 {[%emt 0:03:58]} 24. a5 {[%emt 0:01:09]} Rd8 {[%emt 0:04:25]} 25. a6 {[%emt 0:00:56]} b6 {[%emt 0:04:34]} 26. Ra4 {[%emt 0:01:23]} Qe5 {[%emt 0:06:20]} 27. Qf4 {[%emt 0:02:42]} Qd5 {[%emt 0:02:14]} 28. Rc4 {[%emt 0:06:58]} Nh5 {[%emt 0:04:56]} 29. Qg4 {[%emt 0:00:23]} Rg3 {[%emt 0:03:41]} 30. Qe4 {[%emt 0:00:08]} Qxe4 {[%emt 0:02:00]} 31. Bxe4 {[%emt 0:00:27]} Re3 {[%emt 0:00:33]} 32. Bd3 {[%emt 0:00:41]} Rd7 {[%emt 0:03:49]} 33. Rc8+ {[%emt 0:00:46]} Kh7 {[%emt 0:00:04]} 34. f6+ {[%emt 0:03:35]} g6 {[%emt 0:02:35]} 35. Bb5 {[%emt 0:00:22]} Rd5 {[%emt 0:04:00]} 36. Bc4 {[%emt 0:05:43]} Rf5 {[%emt 0:06:09]} 37. Rc7 {[%emt 0:01:52]} Rxf1+ {[%emt 0:01:15]} 38. Kxf1 {[%emt 0:00:40]} Ng3+ {[%emt 0:01:19]} 39. Kg1 {[%emt 0:00:08]} h5 {[%emt 0:01:53]} 40. Rxf7+ {[%emt 0:00:17]} Kh6 {[%emt 0:00:07]} 41. Re7 {[%emt 0:00:07]} Nf5 {[%emt 0:01:18]} 42. f7 {[%emt 0:01:18]} Rxe7 {[%emt 0:01:39]} 43. f8=Q+ {[%emt 0:00:14]} Kg5 {[%emt 0:00:04]} 44. Bd3 {[%emt 0:00:38]} Re1+ {[%emt 0:00:45]} 45. Kf2 {[%emt 0:00:09]} 1-0